bitfinex/quotes_BTCUSD_20240729
["timestamp","ask_amount","ask_price","bid_price","bid_amount"]
[1722236506363,0.01560407,69735.0,69733.0,0.02030238]
[1722236506561,0.004,69736.0,69733.0,0.13502438]
[1722236506770,0.004,69736.0,69735.0,0.0831]
[1722236506771,0.005,69736.0,69735.0,0.0831]
[1722236507016,0.01963362,69736.0,69735.0,0.0821]
[1722236507229,0.13535162,69736.0,69735.0,0.0811]
[1722236507422,0.01963362,69736.0,69735.0,0.0811]
[1722236507595,0.13435162,69736.0,69735.0,0.0811]
[1722236507777,0.13535162,69736.0,69735.0,0.0711]
[1722236507978,0.13435162,69736.0,69735.0,0.0711]
[1722236508188,0.02063362,69736.0,69735.0,0.0711]
[1722236508394,0.04314361,69736.0,69735.0,0.0711]
[1722236508819,0.15786161,69736.0,69735.0,0.0711]
[1722236509022,0.15886161,69736.0,69735.0,0.0711]
[1722236509226,0.04414361,69736.0,69735.0,0.0711]
[1722236509404,0.15886161,69736.0,69735.0,0.0711]
[1722236509752,0.11972,69735.0,69734.0,0.05]
[1722236509921,0.13536459,69735.0,69734.0,0.1331]
[1722236510596,0.13536455,69735.0,69734.0,0.1331]
[1722236511521,0.13536455,69735.0,69734.0,0.394421]
[1722236511522,0.12288176,69735.0,69734.0,0.394421]
[1722236511728,0.10143936,69735.0,69734.0,0.394421]
[1722236511979,0.001,69735.0,69734.0,0.394421]
[1722236512182,0.001,69735.0,69734.0,0.623864]
[1722236512587,0.002,69735.0,69734.0,0.625864]
[1722236512980,0.06632989,69735.0,69734.0,0.625864]
[1722236513187,0.001,69735.0,69734.0,0.396421]
[1722236513392,0.01780276,69735.0,69734.0,0.396421]
[1722236514169,0.01785355,69735.0,69734.0,0.396421]
[1722236514471,0.01785355,69735.0,69734.0,0.407421]
[1722236515292,0.01685355,69735.0,69734.0,0.2927]
[1722236515449,0.01785355,69735.0,69734.0,0.1167]
[1722236515650,0.01785355,69735.0,69734.0,0.1998]
[1722236515877,0.12606561,69735.0,69734.0,0.2108]
[1722236516075,0.12606561,69735.0,69734.0,0.325521]
[1722236516429,0.01869639,69735.0,69734.0,0.325521]
[1722236516578,0.01869639,69735.0,69734.0,0.2108]
[1722236516921,0.01869639,69735.0,69734.0,0.325521]
[1722236518322,0.01869639,69735.0,69734.0,0.063]
[1722236518323,0.32285994,69735.0,69734.0,0.063]
[1722236518501,1.20541255,69735.0,69734.0,0.063]
[1722236518708,1.11919255,69735.0,69734.0,0.063]
[1722236519305,1.06913639,69735.0,69734.0,0.063]
[1722236519549,1.1381327,69735.0,69734.0,0.063]
[1722236519733,1.1381327,69735.0,69734.0,0.061]
[1722236519909,1.05144,69735.0,69734.0,0.061]
[1722236520106,1.3097276,69735.0,69734.0,0.063]
[1722236520312,1.5391676,69735.0,69734.0,0.063]
[1722236520529,1.2256276,69735.0,69734.0,0.063]
[1722236520807,0.9109676,69735.0,69734.0,0.063]
[1722236521027,0.6174276,69735.0,69734.0,0.063]
[1722236521204,0.8468676,69735.0,69734.0,0.063]
[1722236521425,0.5184276,69735.0,69734.0,0.063]
[1722236521625,0.0889676,69735.0,69734.0,0.238021]
[1722236521825,0.0889676,69735.0,69734.0,0.696907]
[1722236521826,0.02879445,69735.0,69734.0,0.696907]
[1722236522274,0.02879445,69735.0,69734.0,0.92635]
[1722236522275,0.09323974,69735.0,69734.0,0.92635]
[1722236522481,0.002,69735.0,69734.0,1.15245]
[1722236522841,0.04290406,69743.0,69742.0,0.145]
[1722236523047,0.0021854,69754.0,69750.0,0.049]
[1722236523048,0.04290406,69751.0,69750.0,0.049]
[1722236523250,0.04290406,69752.0,69751.0,0.572467]
[1722236523459,0.04290406,69753.0,69752.0,0.57346]
[1722236523657,0.0021854,69754.0,69752.0,0.57346]
[1722236523905,0.06653819,69754.0,69753.0,0.57345]
[1722236524110,0.09337779,69754.0,69753.0,0.94563]
[1722236524250,0.0021854,69754.0,69753.0,0.99363]
[1722236524674,0.0021854,69754.0,69753.0,1.08963]
[1722236524831,0.0021854,69754.0,69753.0,1.09163]
[1722236525031,0.0021854,69754.0,69753.0,1.08863]
[1722236525674,0.0031854,69754.0,69753.0,1.10163]
[1722236525915,0.0031854,69754.0,69753.0,1.60721]
[1722236526120,0.0031854,69754.0,69753.0,1.12763]
[1722236526292,0.0031854,69754.0,69753.0,1.20163]
[1722236526491,0.0031854,69754.0,69753.0,1.10463]
[1722236527215,0.0031854,69754.0,69753.0,0.82725]
[1722236527817,0.0031854,69754.0,69753.0,0.72725]
[1722236528019,0.0031854,69754.0,69753.0,0.65975]
[1722236528458,0.0031854,69754.0,69753.0,0.35507]
[1722236528684,0.0031854,69754.0,69753.0,0.58445]
[1722236528854,0.0031854,69754.0,69753.0,0.59845]
[1722236529054,0.0041854,69754.0,69753.0,0.59845]
[1722236529236,0.0031854,69754.0,69753.0,0.59845]
[1722236530854,0.0031854,69754.0,69753.0,0.36907]
[1722236531020,0.0081854,69754.0,69753.0,0.027]
[1722236531321,0.05006182,69754.0,69753.0,0.027]
[1722236531526,0.14437509,69754.0,69753.0,0.027]
[1722236531888,0.004,69748.0,69746.0,0.0664]
[1722236532296,0.004,69752.0,69751.0,0.114693]
[1722236532493,0.004,69752.0,69746.0,0.0664]
[1722236532494,0.0725616,69754.0,69753.0,0.22938]
[1722236532739,0.02468709,69754.0,69753.0,0.34407]
[1722236532913,0.02568709,69754.0,69753.0,0.58445]
[1722236533114,0.02568709,69754.0,69753.0,0.35507]
[1722236533300,0.0021854,69754.0,69753.0,0.63915]
[1722236533506,0.0021854,69754.0,69753.0,0.40977]
[1722236533709,0.0021854,69754.0,69753.0,0.63815]
[1722236535277,0.0021854,69754.0,69753.0,0.65215]
[1722236535606,0.0031854,69754.0,69753.0,0.36807]
[1722236535899,0.0256882,69754.0,69751.0,0.229387]
[1722236536110,0.09100379,69754.0,69753.0,0.025]
[1722236536303,0.09100379,69754.0,69753.0,0.13969]
[1722236536475,0.09100379,69754.0,69753.0,0.36907]
[1722236536476,0.0266882,69754.0,69753.0,0.36907]
[1722236536860,0.0021854,69754.0,69753.0,0.35807]
[1722236537055,0.1462854,69754.0,69753.0,0.12869]
[1722236537270,0.21458711,69754.0,69753.0,0.00767]
[1722236537477,0.21542711,69754.0,69753.0,0.12236]
[1722236537876,0.21542711,69754.0,69753.0,0.00767]
[1722236538086,0.1511254,69754.0,69753.0,0.00767]
[1722236538453,0.1501254,69754.0,69753.0,0.00767]
[1722236538741,0.26327139,69754.0,69753.0,0.00767]
[1722236538941,0.19897139,69754.0,69753.0,0.00767]
[1722236539169,0.19879849,69754.0,69753.0,0.00767]
[1722236539639,0.19979849,69754.0,69753.0,0.00767]
[1722236539837,0.0868254,69754.0,69753.0,0.00767]
[1722236540014,0.19927306,69754.0,69753.0,0.00767]
[1722236540214,0.17255696,69754.0,69753.0,0.00767]
[1722236540417,0.28824496,69754.0,69753.0,0.00767]
[1722236540623,0.31496172,69754.0,69753.0,0.00767]
[1722236540848,0.31496172,69754.0,69749.0,0.114696]
[1722236541040,0.04586633,69750.0,69749.0,0.114696]
[1722236541243,0.04686633,69750.0,69749.0,0.114696]
[1722236541893,0.004,69747.0,69744.0,0.229409]
[1722236542208,0.004,69747.0,69746.0,0.114701]
[1722236542643,0.005,69747.0,69746.0,0.114701]
[1722236542839,0.004,69747.0,69746.0,0.114701]
[1722236543369,0.005,69747.0,69746.0,0.128701]
[1722236543694,0.00492832,69747.0,69746.0,0.128701]
[1722236543891,0.00492832,69747.0,69746.0,0.358104]
[1722236544056,0.001,69747.0,69746.0,0.587507]
[1722236544259,0.02350533,69747.0,69746.0,0.670007]
[1722236544456,0.02350533,69747.0,69746.0,0.89941]
[1722236544916,0.001,69747.0,69746.0,0.89941]
[1722236547387,0.001,69747.0,69746.0,0.96241]
[1722236548295,0.0235046,69747.0,69746.0,0.96241]
[1722236548515,0.001,69747.0,69746.0,0.96241]
[1722236548719,0.001,69747.0,69746.0,1.01141]
[1722236548924,0.001,69747.0,69746.0,0.96241]
[1722236551732,0.02350464,69747.0,69746.0,0.96241]
[1722236551928,0.02350464,69747.0,69746.0,0.87991]
[1722236553002,0.001,69747.0,69746.0,0.87991]
[1722236553903,0.001,69747.0,69746.0,0.88991]
[1722236554105,0.002,69747.0,69746.0,0.88991]
[1722236554843,0.15012832,69747.0,69746.0,0.138701]
[1722236555044,0.17580112,69747.0,69746.0,0.138701]
[1722236555928,0.17589646,69747.0,69746.0,0.138701]
[1722236556175,0.19840197,69747.0,69746.0,0.138701]
[1722236556297,0.19740197,69747.0,69746.0,0.128701]
[1722236556498,0.26167729,69747.0,69746.0,0.128701]
[1722236556700,0.26267729,69747.0,69746.0,0.01]
[1722236556899,0.26059689,69747.0,69746.0,0.01]
[1722236557116,0.26059689,69747.0,69746.0,0.124701]
[1722236557354,0.17489646,69747.0,69746.0,0.124701]
[1722236558011,0.02776814,69747.0,69746.0,0.354104]
[1722236558161,0.02776814,69747.0,69746.0,0.583507]
[1722236558356,0.02776814,69747.0,69746.0,0.81291]
[1722236558643,0.001,69747.0,69746.0,0.81291]
[1722236558863,0.002,69747.0,69746.0,0.82691]
[1722236560488,0.02450436,69747.0,69746.0,0.82691]
[1722236560832,0.02350436,69747.0,69746.0,0.81291]
[1722236561499,0.001,69747.0,69746.0,0.81291]
[1722236562435,0.002,69747.0,69746.0,0.82691]
[1722236562839,0.002,69747.0,69746.0,1.33928468]
[1722236563043,0.002,69747.0,69746.0,1.36228468]
[1722236563904,0.002,69747.0,69746.0,1.34828468]
[1722236564142,0.0030254,69754.0,69753.0,0.91510168]
[1722236564263,0.0030254,69754.0,69753.0,1.01110168]
[1722236564661,0.0030254,69754.0,69753.0,0.91410168]
[1722236564662,0.02552709,69754.0,69753.0,0.91410168]
[1722236565919,0.02552709,69754.0,69753.0,0.91310168]
[1722236566095,0.02552709,69754.0,69753.0,0.86703]
[1722236566439,0.02552709,69754.0,69753.0,0.96403]
[1722236566588,0.02652709,69754.0,69753.0,0.97803]
[1722236567016,0.02652709,69754.0,69753.0,0.88103]
[1722236567398,0.02652709,69754.0,69753.0,0.89503]
[1722236567600,0.06943619,69754.0,69753.0,0.99203]
[1722236567999,0.06943619,69754.0,69753.0,0.89503]
[1722236568200,0.09089075,69754.0,69753.0,0.89503]
[1722236568395,0.09097848,69754.0,69753.0,0.89503]
[1722236569014,0.0909783,69754.0,69753.0,0.89503]
[1722236569215,0.0909783,69754.0,69753.0,0.83083]
[1722236569216,0.02652709,69754.0,69753.0,0.83083]
[1722236569417,0.02652709,69754.0,69753.0,0.83959182]
[1722236569922,0.0909783,69754.0,69753.0,0.84051582]
[1722236570117,0.02652709,69754.0,69753.0,0.84051582]
[1722236571437,0.02652709,69754.0,69753.0,0.88951582]
[1722236571642,0.02652709,69754.0,69753.0,0.84051582]
[1722236572991,0.0040254,69754.0,69753.0,0.88951582]
[1722236573217,0.06846929,69754.0,69753.0,0.88951582]
[1722236573493,0.06846929,69754.0,69753.0,0.84051582]
[1722236574115,0.06846929,69754.0,69753.0,0.88951582]
[1722236574344,0.06846929,69754.0,69753.0,0.84051582]
[1722236574527,0.0040254,69754.0,69753.0,0.84051582]
[1722236575810,0.0040254,69754.0,69753.0,0.9835875]
[1722236576052,0.0040254,69754.0,69753.0,1.1159675]
[1722236576251,0.0040254,69754.0,69753.0,1.2129675]
[1722236576470,0.02652731,69754.0,69753.0,1.1159675]
[1722236577671,0.04699323,69754.0,69753.0,1.1159675]
[1722236577872,0.0040254,69754.0,69753.0,1.1159675]
[1722236578230,0.0040254,69754.0,69753.0,1.2129675]
[1722236578655,0.0040254,69754.0,69753.0,1.1159675]
[1722236579882,0.0040254,69754.0,69753.0,1.2129675]
[1722236580076,0.0040254,69754.0,69753.0,1.1159675]
[1722236580279,0.0040254,69754.0,69753.0,1.2129675]
[1722236580854,0.02652746,69754.0,69753.0,1.2129675]
[1722236581255,0.0040254,69754.0,69753.0,1.1989675]
[1722236581958,0.0040254,69754.0,69753.0,1.2807675]
[1722236582380,0.0040254,69754.0,69753.0,1.3409675]
[1722236583409,0.08593566,69758.0,69757.0,0.25975468]
[1722236583581,0.08593566,69758.0,69757.0,0.73702168]
[1722236583791,0.0829,69768.0,69767.0,0.622335]
[1722236584097,0.0829,69768.0,69767.0,0.885669]
[1722236584651,0.0631,69774.0,69773.0,0.573287]
[1722236584826,0.0631,69774.0,69773.0,0.885602]
[1722236584985,0.146,69774.0,69773.0,0.885602]
[1722236585182,0.146,69774.0,69773.0,0.802602]
[1722236585543,0.0829,69774.0,69773.0,0.802602]
[1722236586653,0.15492832,69774.0,69773.0,0.343972]
[1722236586830,0.15392832,69774.0,69773.0,0.343972]
[1722236587812,0.15492832,69774.0,69773.0,0.587287]
[1722236587957,0.17742615,69774.0,69773.0,0.573287]
[1722236588159,0.17742615,69774.0,69773.0,0.371972]
[1722236588359,0.17742615,69774.0,69773.0,0.142657]
[1722236588545,0.17642615,69774.0,69773.0,0.142657]
[1722236588752,0.17742615,69774.0,69773.0,0.142657]
[1722236589170,0.17642615,69774.0,69773.0,0.028]
[1722236589380,0.15392832,69774.0,69773.0,0.028]
[1722236590045,0.15492832,69774.0,69773.0,0.028]
[1722236590290,0.15392832,69774.0,69773.0,0.028]
[1722236590442,0.49789432,69774.0,69773.0,0.028]
[1722236591316,0.26858332,69774.0,69773.0,0.028]
[1722236591862,0.15492832,69774.0,69773.0,0.028]
[1722236592062,0.15392832,69774.0,69773.0,0.028]
[1722236592474,0.17642735,69774.0,69773.0,0.142657]
[1722236592687,0.17642735,69774.0,69773.0,0.028]
[1722236593151,0.15392832,69774.0,69773.0,0.028]
[1722236593508,0.26858332,69774.0,69773.0,0.028]
[1722236593706,0.49889432,69774.0,69773.0,0.028]
[1722236593925,0.91442532,69774.0,69773.0,0.028]
[1722236594121,1.14273632,69774.0,69773.0,0.028]
[1722236594748,1.14273632,69774.0,69773.0,0.014]
[1722236594992,1.14273632,69774.0,69773.0,0.022]
[1722236595527,1.14273632,69774.0,69773.0,0.014]
[1722236595887,1.14273632,69774.0,69773.0,0.015]
[1722236596084,1.21221968,69774.0,69773.0,0.015]
[1722236596502,1.23472117,69774.0,69773.0,0.015]
[1722236596703,1.23572117,69774.0,69773.0,0.015]
[1722236596880,1.18392722,69774.0,69773.0,0.015]
[1722236597083,1.18392722,69774.0,69773.0,0.014]
[1722236597084,1.23542656,69774.0,69773.0,0.014]
[1722236597309,0.91989556,69774.0,69773.0,0.014]
[1722236597515,0.91989639,69774.0,69773.0,0.014]
[1722236597724,1.14920739,69774.0,69773.0,0.014]
[1722236597880,1.14820739,69774.0,69773.0,0.014]
[1722236598081,1.14920739,69774.0,69773.0,0.014]
[1722236598328,1.14820739,69774.0,69773.0,0.014]
[1722236598528,1.14920739,69774.0,69773.0,0.014]
[1722236598770,1.14820739,69774.0,69773.0,0.014]
[1722236599515,1.14920739,69774.0,69773.0,0.014]
[1722236599709,0.114668,69767.0,69761.0,0.114676]
[1722236599916,0.002,69763.0,69762.0,0.114675]
[1722236600566,0.003,69763.0,69762.0,0.114675]
[1722236600755,0.0205246,69763.0,69762.0,0.114675]
[1722236601269,0.04302604,69763.0,69762.0,0.114675]
[1722236602072,0.04695436,69763.0,69762.0,0.114675]
[1722236602276,0.04595436,69763.0,69762.0,0.114675]
[1722236602868,0.04595436,69763.0,69760.0,0.229357]
[1722236603069,0.002,69761.0,69760.0,0.344035]
[1722236603220,0.0205246,69761.0,69760.0,0.344035]
[1722236603420,0.02345292,69761.0,69760.0,0.344035]
[1722236603639,0.02351236,69761.0,69760.0,0.344035]
[1722236604356,0.02451236,69761.0,69760.0,0.344035]
[1722236605109,0.02351236,69761.0,69760.0,0.344035]
[1722236605724,0.02351236,69761.0,69760.0,0.357035]
[1722236606313,0.02451236,69761.0,69760.0,0.357035]
[1722236606853,0.02516971,69761.0,69760.0,0.357035]
[1722236607057,0.02516971,69761.0,69760.0,0.368035]
[1722236607211,0.00692832,69761.0,69760.0,0.368035]
[1722236608084,0.02516974,69761.0,69760.0,0.368035]
[1722236608601,0.02416974,69761.0,69760.0,0.368035]
[1722236609022,0.04767131,69761.0,69760.0,0.368035]
[1722236609220,0.04667131,69761.0,69760.0,0.451135]
[1722236609415,0.04668062,69761.0,69760.0,0.451135]
[1722236609731,0.04768062,69761.0,69760.0,0.451135]
[1722236609932,0.04762173,69761.0,69760.0,0.451135]
[1722236610403,0.04662173,69761.0,69760.0,0.451135]
[1722236610653,0.04762173,69761.0,69760.0,0.451135]
[1722236610830,0.04662173,69761.0,69760.0,0.451135]
[1722236611042,0.12512173,69761.0,69760.0,0.451135]
[1722236611175,0.12412173,69761.0,69760.0,0.451135]
[1722236611632,0.12512173,69761.0,69760.0,0.680492]
[1722236611804,0.12512173,69761.0,69760.0,0.451135]
[1722236612587,0.12412173,69761.0,69760.0,0.221778]
[1722236612797,0.12412173,69761.0,69760.0,0.024]
[1722236612798,0.18992173,69761.0,69760.0,0.024]
[1722236613154,0.31879238,69761.0,69760.0,0.024]
[1722236613372,0.31920854,69761.0,69760.0,0.024]
[1722236613531,0.66423954,69761.0,69760.0,0.024]
[1722236613729,0.76479048,69761.0,69760.0,0.024]
[1722236613942,0.90864412,69761.0,69760.0,0.024]
[1722236614139,0.76479048,69761.0,69760.0,0.024]
[1722236614339,0.81709836,69761.0,69760.0,0.024]
[1722236614764,0.81609836,69761.0,69760.0,0.024]
[1722236615000,0.81709836,69761.0,69760.0,0.024]
[1722236615605,1.04645236,69761.0,69760.0,0.024]
[1722236615825,1.02395079,69761.0,69760.0,0.024]
[1722236616164,0.79459679,69761.0,69760.0,0.024]
[1722236616379,0.7946204,69761.0,69760.0,0.013]
[1722236616601,0.7946204,69761.0,69755.0,0.000924]
[1722236616602,0.58035332,69756.0,69755.0,0.000924]
[1722236616784,0.74289305,69756.0,69755.0,0.000924]
[1722236617933,0.74289305,69756.0,69755.0,0.006924]
[1722236618337,1.20980418,69756.0,69755.0,0.006924]
[1722236618936,1.21080418,69756.0,69755.0,0.006924]
[1722236619141,1.23324447,69756.0,69755.0,0.006924]
[1722236619361,1.23424447,69756.0,69755.0,0.006924]
[1722236619563,1.23324205,69756.0,69755.0,0.006924]
[1722236619785,1.23424205,69756.0,69755.0,0.014924]
[1722236619986,1.23324205,69756.0,69755.0,0.014924]
[1722236620190,1.21073584,69756.0,69755.0,0.014924]
[1722236620408,1.21173584,69756.0,69755.0,0.014924]
[1722236620745,1.21073584,69756.0,69755.0,0.014924]
[1722236620996,1.21173584,69756.0,69755.0,0.014924]
[1722236621202,1.21073584,69756.0,69755.0,0.014924]
[1722236621625,1.21173584,69756.0,69755.0,0.014924]
[1722236621774,1.21073584,69756.0,69755.0,0.014924]
[1722236622213,1.21003947,69756.0,69755.0,0.014924]
[1722236622679,1.21004596,69756.0,69755.0,0.014924]
[1722236623290,1.35446105,69756.0,69755.0,0.014924]
[1722236623492,1.12382596,69756.0,69755.0,0.014924]
[1722236624269,1.12482596,69756.0,69755.0,0.014924]
[1722236624473,1.12382596,69756.0,69755.0,0.014924]
[1722236624804,1.12482596,69756.0,69755.0,0.014924]
[1722236625424,1.12382596,69756.0,69755.0,0.014924]
[1722236625629,1.12482596,69756.0,69755.0,0.014924]
[1722236625834,1.12467066,69756.0,69755.0,0.014924]
[1722236626031,1.12367066,69756.0,69755.0,0.014924]
[1722236626439,1.12467053,69756.0,69755.0,0.014924]
[1722236627744,1.12367053,69756.0,69755.0,0.014924]
[1722236627973,1.3765472,69756.0,69755.0,0.014924]
[1722236628119,1.35304053,69756.0,69755.0,0.014924]
[1722236628537,1.35404053,69756.0,69755.0,0.014924]
[1722236628737,1.35329649,69756.0,69755.0,0.014924]
[1722236629180,1.35429649,69756.0,69755.0,0.014924]
[1722236629475,1.92510264,69756.0,69755.0,0.014924]
[1722236629697,1.64473264,69756.0,69755.0,0.014924]
[1722236629896,1.69573264,69756.0,69755.0,0.014924]
[1722236630045,1.69573264,69756.0,69755.0,0.000924]
[1722236630246,1.69573264,69756.0,69755.0,0.001924]
[1722236630455,1.69573264,69756.0,69755.0,0.002924]
[1722236630456,1.69873264,69756.0,69755.0,0.002924]
[1722236630657,1.44256649,69756.0,69755.0,0.001924]
[1722236630889,1.49256649,69756.0,69755.0,0.001924]
[1722236631104,1.54256649,69756.0,69755.0,0.001924]
[1722236631266,1.43956649,69756.0,69755.0,0.000924]
[1722236631462,1.46507478,69756.0,69755.0,0.001924]
[1722236631686,1.44256649,69756.0,69755.0,0.001924]
[1722236632092,1.36826332,69756.0,69755.0,0.000924]
[1722236632298,1.48941497,69756.0,69755.0,0.000924]
[1722236632473,1.53941497,69756.0,69755.0,0.000924]
[1722236632699,1.43941497,69756.0,69755.0,0.000924]
[1722236633549,1.21104497,69756.0,69755.0,0.000924]
[1722236633754,1.35548385,69756.0,69755.0,0.000924]
[1722236633928,1.21004497,69756.0,69755.0,0.000924]
[1722236634602,0.89540497,69756.0,69755.0,0.000924]
[1722236634723,0.90840497,69756.0,69755.0,0.001924]
[1722236634921,0.2209388,69756.0,69755.0,0.001924]
[1722236635124,0.35812998,69756.0,69755.0,0.001924]
[1722236635324,0.06124562,69756.0,69755.0,0.001924]
[1722236635740,0.06024562,69756.0,69755.0,0.001924]
[1722236635946,0.06024126,69756.0,69755.0,0.001924]
[1722236636159,0.03773508,69756.0,69755.0,0.001924]
[1722236636791,0.02573508,69756.0,69755.0,0.116611]
[1722236636993,0.02573508,69756.0,69755.0,0.001924]
[1722236637846,0.02373508,69756.0,69755.0,0.637559]
[1722236638088,0.13366946,69756.0,69755.0,0.408185]
[1722236638284,0.13600263,69756.0,69755.0,0.408185]
[1722236638494,0.02889875,69756.0,69755.0,0.637559]
[1722236638641,0.02097043,69756.0,69755.0,0.866933]
[1722236638842,0.10669352,69756.0,69755.0,0.866933]
[1722236639052,0.10769352,69756.0,69755.0,0.645559]
[1722236639231,0.02197043,69756.0,69755.0,0.645559]
[1722236639437,0.1302119,69756.0,69755.0,0.645559]
[1722236639768,0.02097043,69756.0,69755.0,0.637559]
[1722236639925,0.02197043,69756.0,69755.0,0.651559]
[1722236640364,0.10769368,69756.0,69755.0,0.651559]
[1722236640550,0.10769627,69756.0,69755.0,0.651559]
[1722236640726,0.067133,69756.0,69755.0,0.651559]
[1722236641086,0.00284,69756.0,69755.0,0.938333]
[1722236641209,0.00284,69756.0,69755.0,0.987333]
[1722236641528,0.00284,69756.0,69755.0,0.938333]
[1722236641753,0.00284,69756.0,69755.0,0.987333]
[1722236641953,0.00284,69756.0,69755.0,0.938333]
[1722236642174,0.00284,69756.0,69755.0,0.987333]
[1722236642376,0.00284,69756.0,69755.0,1.15294823]
[1722236642744,0.00284,69756.0,69755.0,1.08340468]
[1722236642991,0.02534097,69756.0,69755.0,1.08140468]
[1722236643398,0.00284,69756.0,69755.0,1.31077868]
[1722236643601,0.00284,69756.0,69755.0,1.08340468]
[1722236643995,0.00184,69756.0,69755.0,1.08340468]
[1722236644776,0.00284,69756.0,69755.0,1.09340468]
[1722236645025,0.00284,69756.0,69755.0,1.32277868]
[1722236645201,0.00284,69756.0,69755.0,1.08340468]
[1722236645202,0.00184,69756.0,69755.0,1.08340468]
[1722236645404,0.00184,69756.0,69755.0,1.09740468]
[1722236645405,0.00284,69756.0,69755.0,1.09740468]
[1722236645672,0.00284,69756.0,69755.0,1.22777868]
[1722236645862,0.00284,69756.0,69755.0,1.34977868]
[1722236646201,0.0253394,69756.0,69755.0,1.25077868]
[1722236646544,0.00284,69756.0,69755.0,1.34977868]
[1722236646970,0.00184,69756.0,69755.0,1.33577868]
[1722236647345,0.00184,69756.0,69755.0,1.34877868]
[1722236647728,0.00184,69756.0,69755.0,1.23677868]
[1722236647949,0.00184,69756.0,69755.0,1.34977868]
[1722236648198,0.00184,69756.0,69755.0,1.50107868]
[1722236649432,0.02433916,69756.0,69755.0,1.50107868]
[1722236649994,0.00084,69774.0,69773.0,0.573287]
[1722236650176,0.00084,69774.0,69773.0,0.635087]
[1722236650379,0.00084,69774.0,69773.0,0.864402]
[1722236653281,0.02333693,69774.0,69773.0,0.864402]
[1722236653479,0.02433693,69774.0,69773.0,0.635087]
[1722236653647,0.00084,69774.0,69773.0,0.635087]
[1722236653845,0.02333729,69774.0,69773.0,0.635087]
[1722236654470,0.02333729,69774.0,69773.0,0.64365882]
[1722236654757,0.00184,69774.0,69773.0,0.35254382]
[1722236654927,0.07804,69774.0,69773.0,0.59285882]
[1722236655130,0.07904,69774.0,69773.0,0.36354382]
[1722236655462,0.08396832,69774.0,69773.0,0.351972]
[1722236655650,0.08496832,69774.0,69773.0,0.351972]
[1722236655894,0.08396832,69774.0,69773.0,0.343972]
[1722236656064,0.08196832,69774.0,69773.0,0.343972]
[1722236656224,0.08196832,69774.0,69773.0,0.357972]
[1722236656225,0.08396832,69774.0,69773.0,0.357972]
[1722236656404,0.00084,69774.0,69773.0,0.587287]
[1722236656809,0.00084,69774.0,69773.0,0.926502]
[1722236657014,0.00084,69774.0,69773.0,0.877502]
[1722236657260,0.00184,69774.0,69773.0,0.357972]
[1722236657459,0.00476832,69774.0,69773.0,0.128657]
[1722236657660,0.00676832,69774.0,69773.0,0.357972]
[1722236657899,0.00476832,69774.0,69773.0,0.357972]
[1722236658180,0.0292664,69774.0,69773.0,0.357972]
[1722236659574,0.0292664,69774.0,69773.0,0.371972]
[1722236659808,0.0292664,69774.0,69773.0,0.028]
[1722236660035,0.0292664,69774.0,69773.0,0.142657]
[1722236660269,0.1088664,69774.0,69773.0,0.142657]
[1722236660543,0.1098664,69774.0,69773.0,0.028]
[1722236660770,0.1088664,69774.0,69773.0,0.028]
[1722236661002,0.2849214,69774.0,69773.0,0.028]
[1722236661228,0.53556461,69774.0,69773.0,0.028]
[1722236661461,0.53456461,69774.0,69773.0,0.028]
[1722236662182,1.14459571,69774.0,69773.0,0.028]
[1722236662415,1.15675048,69774.0,69773.0,0.028]
[1722236662647,1.15775048,69774.0,69773.0,0.028]
[1722236663292,1.15775048,69774.0,69773.0,0.014]
[1722236663293,0.98119933,69774.0,69773.0,0.014]
[1722236663508,0.92843948,69774.0,69773.0,0.014]
[1722236663716,0.84116948,69774.0,69773.0,0.014]
[1722236663916,0.92660756,69774.0,69773.0,0.014]
[1722236664072,0.00692832,69765.0,69764.0,0.114671]
[1722236664258,0.02705248,69765.0,69764.0,0.114671]
[1722236664455,0.00392832,69763.0,69762.0,0.344025]
[1722236664659,0.08802832,69763.0,69762.0,0.114674]
[1722236664864,0.08802832,69763.0,69761.0,0.114676]
[1722236665066,0.00692832,69762.0,69761.0,0.34403]
[1722236665441,0.00692832,69762.0,69761.0,0.573384]
[1722236665442,0.00592832,69762.0,69761.0,0.573384]
[1722236665625,0.00592832,69762.0,69761.0,0.34403]
[1722236665763,0.00592832,69762.0,69754.0,0.229375]
[1722236665764,0.001,69755.0,69754.0,0.229375]
[1722236665964,0.00392832,69757.0,69754.0,0.229375]
[1722236665965,0.001,69756.0,69754.0,0.229375]
[1722236666167,0.00692832,69754.0,69753.0,0.000924]
[1722236666373,0.07012832,69754.0,69753.0,0.000924]
[1722236666799,0.0910367,69754.0,69753.0,0.000924]
[1722236667017,0.0900367,69754.0,69753.0,0.000924]
[1722236667688,0.0910367,69754.0,69753.0,0.000924]
[1722236667892,0.0900367,69754.0,69753.0,0.000924]
[1722236668538,0.06912832,69754.0,69753.0,0.000924]
[1722236668710,0.09063102,69754.0,69753.0,0.000924]
[1722236668926,0.20531902,69754.0,69753.0,0.000924]
[1722236669401,0.76257733,69754.0,69753.0,0.000924]
[1722236669558,0.74007302,69754.0,69753.0,0.000924]
[1722236669846,1.05491087,69754.0,69753.0,0.000924]
[1722236670033,1.05491087,69754.0,69753.0,0.014924]
[1722236670495,0.96945002,69754.0,69753.0,0.000924]
[1722236670710,0.74007302,69754.0,69753.0,0.000924]
[1722236671399,0.74007302,69754.0,69753.0,0.014924]
[1722236671624,0.96945002,69754.0,69753.0,0.014924]
[1722236671840,0.96955445,69754.0,69753.0,0.014924]
[1722236672284,0.71957032,69754.0,69753.0,0.014924]
[1722236672510,0.74009866,69754.0,69753.0,0.014924]
[1722236672951,0.76160476,69754.0,69753.0,0.014924]
[1722236673170,0.76260476,69754.0,69753.0,0.014924]
[1722236673614,0.59620811,69754.0,69753.0,0.014924]
[1722236673620,0.51072166,69754.0,69753.0,0.014924]
[1722236674101,0.74009866,69754.0,69753.0,0.014924]
[1722236674340,0.71957032,69754.0,69753.0,0.014924]
[1722236674574,0.74014844,69754.0,69753.0,0.014924]